bitfinex/quotes_ETHUSD_20250808
["timestamp","ask_amount","ask_price","bid_price","bid_amount"]
[1754662524995,6.06939937,3969.2,3969.1,0.04]
[1754662525203,3.06997076,3968.3,3968.1,0.04]
[1754662525522,3.07003427,3968.2,3968.1,1e-08]
[1754662525708,8.29393427,3968.2,3968.1,1e-08]
[1754662526034,7.89043427,3968.2,3968.1,1e-08]
[1754662526201,7.88943427,3968.2,3968.1,1e-08]
[1754662526536,9.98693427,3968.2,3968.1,1e-08]
[1754662527029,9.98593427,3968.2,3968.1,1e-08]
[1754662527229,3.19643427,3968.2,3968.1,1e-08]
[1754662527435,7.88643427,3968.2,3968.1,1e-08]
[1754662527734,4.8164,3968.2,3968.1,1e-08]
[1754662527919,5.3664,3968.2,3968.1,1e-08]
[1754662528132,7.88643427,3968.2,3968.1,1e-08]
[1754662528330,5.3664,3968.2,3968.1,1e-08]
[1754662528543,0.1264,3968.2,3968.1,1e-08]
[1754662528712,4.8124,3968.2,3968.1,1e-08]
[1754662528908,7.33243427,3968.2,3968.1,1e-08]
[1754662529158,7.88243427,3968.2,3968.1,1e-08]
[1754662529445,9.53573427,3968.2,3968.1,1e-08]
[1754662529642,4.678,3968.2,3968.1,1e-08]
[1754662529945,7.87443427,3968.2,3968.1,1e-08]
[1754662530951,3.19643427,3968.2,3968.1,1e-08]
[1754662531108,3.2216354,3968.2,3968.1,1e-08]
[1754662531449,8.3191354,3968.2,3968.1,1e-08]
[1754662531656,8.29393427,3968.2,3968.1,1e-08]
[1754662533465,3.07066948,3967.2,3967.1,1e-08]
[1754662533757,7.85606948,3967.2,3967.1,1e-08]
[1754662534949,2.64706948,3967.2,3967.1,0.42910001]
[1754662535149,2.64706948,3967.2,3967.1,1e-08]
[1754662535318,2.67227061,3967.2,3967.1,1e-08]
[1754662535648,3.22227061,3967.2,3967.1,1e-08]
[1754662536517,3.07130502,3966.2,3966.1,0.04]
[1754662536742,7.85070502,3966.2,3966.1,0.04]
[1754662537325,5.3294,3966.2,3966.1,0.04]
[1754662537536,7.85070502,3966.2,3966.1,0.04]
[1754662538225,5.3294,3966.2,3966.1,0.04]
[1754662538556,5.3294,3966.2,3965.4,4.18386529]
[1754662538557,4.7794,3966.2,3965.4,1.5021]
[1754662538761,6.4811,3968.3,3966.1,0.4291]
[1754662538920,4.639,3968.2,3966.2,2.52130502]
[1754662539115,6.4811,3968.3,3966.3,0.45431241]
[1754662539116,0.4291,3968.3,3966.3,0.45431241]
[1754662539353,6.31750113,3968.2,3966.3,0.4291]
[1754662539556,0.1264,3966.4,3965.6,0.4291]
[1754662539755,0.1264,3965.7,3965.6,0.4291]
[1754662540496,0.1264,3965.7,3965.6,2.0912]
[1754662541372,3.07187728,3965.3,3965.2,0.004]
[1754662541554,7.73007841,3965.3,3965.2,0.004]
[1754662541754,7.70487728,3965.3,3965.2,0.004]
[1754662541976,3.07194088,3965.2,3965.1,1e-08]
[1754662542258,7.73514201,3965.2,3965.1,1e-08]
[1754662542478,9.80744088,3965.2,3965.1,1e-08]
[1754662542684,3.07194088,3965.2,3965.1,1e-08]
[1754662542886,7.73814201,3965.2,3965.1,1e-08]
[1754662543156,4.641,3965.5,3965.1,1e-08]
[1754662543378,2.5218647,3965.4,3965.1,1e-08]
[1754662543585,3.07194088,3965.2,3965.1,1e-08]
[1754662544093,5.19464201,3965.2,3965.1,1e-08]
[1754662544258,0.55,3964.5,3963.4,0.36910001]
[1754662544450,2.52276839,3963.9,3963.4,0.36910001]
[1754662544650,2.52257706,3964.2,3963.4,0.36910001]
[1754662544651,4.659,3963.8,3963.4,1.6621]
[1754662544890,7.17990538,3963.7,3962.7,1.6621]
[1754662545092,7.17990538,3963.7,3958.2,3.73325409]
[1754662545093,0.55,3963.6,3958.2,3.73325409]
[1754662545408,3.07321356,3963.2,3963.1,1e-08]
[1754662545553,3.07385038,3962.2,3960.9,1.6621]
[1754662545755,7.75705151,3962.2,3960.9,1.6621]
[1754662546002,3.07385038,3962.2,3961.0,2.52455128]
[1754662546153,4.75235151,3962.2,3962.1,1e-08]
[1754662546354,0.55,3962.2,3962.1,1e-08]
[1754662546580,4.657,3962.2,3962.1,0.42910001]
[1754662546785,4.656,3962.5,3962.1,2.09120001]
[1754662546993,2.52228727,3964.7,3962.2,2.0912]
[1754662546994,4.656,3963.1,3962.2,2.0912]
[1754662547270,0.02520113,3963.0,3962.3,0.4291]
[1754662547505,2.52378549,3962.4,3962.1,1e-08]
[1754662547725,0.57520113,3963.0,3962.1,0.42910001]
[1754662547726,4.654,3962.3,3962.1,0.42910001]
[1754662547885,0.57520113,3963.0,3962.2,0.4291]
[1754662547886,4.655,3962.4,3962.2,0.4291]
[1754662548206,4.653,3962.3,3962.1,1e-08]
[1754662548372,4.653,3962.2,3962.1,1e-08]
[1754662548787,4.653,3962.2,3962.1,0.42910001]
[1754662549111,7.72685038,3962.2,3962.1,1e-08]
[1754662549307,0.55,3963.4,3962.1,0.42910001]
[1754662549470,7.7083,3963.5,3962.1,0.42910001]
[1754662549471,8.57803582,3963.5,3962.1,2.09120001]
[1754662549676,0.002,3964.7,3962.2,5.17105]
[1754662549872,0.002,3964.7,3962.7,3.0]
[1754662550122,0.002,3964.7,3962.8,0.02523468]
[1754662550283,4.666,3964.6,3962.9,5.0912]
[1754662550487,4.666,3964.6,3964.1,2.52263987]
[1754662550730,4.69120113,3964.6,3963.6,1.6621]
[1754662550878,0.02520113,3964.5,3963.6,1.6621]
[1754662551077,2.52275723,3964.0,3963.6,1.6621]
[1754662551274,2.52257731,3964.2,3963.1,0.4291]
[1754662551275,4.664,3963.9,3963.1,0.4291]
[1754662551528,0.02520113,3963.8,3963.1,0.4291]
[1754662551678,0.02520113,3963.8,3963.4,0.1264]
[1754662551679,0.57520113,3963.8,3963.4,0.1264]
[1754662552014,2.522445,3964.5,3963.1,0.4291]
[1754662552015,0.1264,3963.2,3963.1,0.4291]
[1754662552233,4.7854,3963.2,3963.1,0.4291]
[1754662552525,4.7854,3963.2,3962.2,2.52382283]
[1754662552526,4.7814,3963.2,3962.4,0.4291]
[1754662552689,2.6498167,3962.9,3961.8,2.95320017]
[1754662552870,0.1264,3962.4,3961.9,0.1264]
[1754662553076,0.1264,3962.2,3961.8,0.4291]
[1754662553274,0.1264,3962.2,3961.6,2.0912]
[1754662553711,2.65025038,3962.2,3961.6,2.0912]
[1754662554014,2.65025038,3962.2,3961.1,0.04]
[1754662555216,0.1264,3962.2,3961.3,0.4554]
[1754662555420,0.1264,3961.8,3961.3,0.4554]
[1754662555631,4.7674,3962.0,3961.5,0.1264]
[1754662555786,4.642,3962.2,3961.9,2.52398117]
[1754662555982,4.641,3962.1,3962.0,2.97937778]
[1754662556182,4.641,3962.1,3962.0,2.87937778]
[1754662556729,2.1158,3963.9,3962.0,2.87937778]
[1754662556730,4.64,3962.2,3962.1,2.5238675]
[1754662556889,0.1264,3962.5,3962.1,0.4554]
[1754662557083,4.636,3962.7,3962.1,3.0]
[1754662557318,1.6491,3963.9,3961.9,0.15164041]
[1754662557319,4.637,3962.6,3962.2,0.4554]
[1754662557626,0.4667,3964.0,3961.9,2.65042089]
[1754662557627,0.04,3963.4,3962.3,2.1071]
[1754662557824,0.04,3963.4,3963.3,2.6495499]
[1754662558320,0.04,3963.4,3963.3,4.7566499]
[1754662558706,0.04,3963.4,3963.3,2.1071]
[1754662558907,0.04,3963.4,3963.3,0.4554]
[1754662559110,0.1664,3963.4,3963.3,0.4554]
[1754662559324,0.04,3963.4,3962.9,0.1264]
[1754662559524,4.639,3963.3,3962.4,0.4554]
[1754662559820,0.4679,3963.2,3961.9,4.63113976]
[1754662560020,0.02520113,3963.1,3961.9,2.1071]
[1754662560225,0.4679,3963.2,3961.9,0.4554]
[1754662560226,0.49310113,3963.2,3961.9,0.4554]
[1754662560431,0.04,3963.4,3962.1,2.52391408]
[1754662560632,0.04,3963.4,3962.2,4.752172]
[1754662560633,2.56309483,3963.4,3962.2,4.752172]
[1754662560934,4.68,3963.4,3962.2,2.1071]
[1754662561089,0.04,3963.4,3962.3,2.1071]
[1754662561289,0.04,3963.4,3962.4,0.4554]
[1754662561736,0.04,3963.4,3962.9,2.52339472]
[1754662561965,0.04,3963.4,3962.6,0.4554]
[1754662562167,0.04,3963.4,3962.9,0.4554]
[1754662562341,2.52264273,3964.1,3963.1,13.5288574]
[1754662562542,0.04,3964.4,3963.1,13.5288574]
[1754662562543,4.674,3964.4,3963.2,0.4554]
[1754662562866,4.674,3964.4,3963.1,1.6517]
[1754662562867,4.674,3964.4,3962.6,0.46308127]
[1754662562868,4.674,3964.4,3962.4,1.6517]
[1754662562869,0.02520113,3964.3,3962.4,1.6517]
[1754662563065,0.55,3964.1,3962.5,0.4554]
[1754662563232,0.52082011,3964.0,3962.5,0.4554]
[1754662563566,0.52082011,3964.0,3961.9,3.4554]
[1754662563567,0.57520113,3963.9,3961.9,3.4554]
[1754662563768,2.52339244,3963.0,3962.2,2.52383805]
[1754662563932,4.629,3962.9,3962.2,2.523837]
[1754662564269,2.52323073,3963.2,3961.7,1.6517]
[1754662564270,4.629,3963.2,3962.3,2.97913978]
[1754662564471,0.52082011,3964.0,3962.4,0.02523722]
[1754662564767,2.52317339,3963.3,3962.5,3.0]
[1754662564965,2.52314742,3963.4,3962.4,0.4554]
[1754662565130,4.625,3963.8,3962.4,0.4554]
[1754662565530,1.6491,3964.1,3962.4,0.4554]
[1754662565531,0.02520113,3964.0,3962.4,0.4554]
[1754662565731,4.622,3963.9,3962.4,0.4554]
[1754662565964,1.43190108,3963.8,3962.4,0.4554]
[1754662566264,2.52307384,3963.5,3962.7,2.52347586]
[1754662566464,2.52311178,3963.4,3962.4,5.9791157]
[1754662566674,2.52321356,3963.2,3962.4,0.4554]
[1754662566854,2.5234306,3962.9,3962.2,2.52383751]
[1754662567034,2.5234306,3962.9,3962.3,3.0]
[1754662567237,2.5234306,3962.9,3962.1,0.001]
[1754662567238,2.52385038,3962.2,3962.1,0.001]
[1754662567582,7.13785038,3962.2,3962.1,0.001]
[1754662567747,2.15376442,3962.9,3962.1,0.001]
[1754662567941,4.613,3962.8,3962.1,0.4564]
[1754662568139,2.52354364,3962.7,3962.1,0.4564]
[1754662568372,2.52379779,3962.3,3962.1,0.001]
[1754662568666,0.55,3962.6,3962.1,0.001]
[1754662568870,4.17295038,3962.2,3962.1,0.001]
[1754662569174,5.42034323,3962.2,3962.1,0.001]
[1754662569390,10.0051421,3962.2,3962.1,0.001]
[1754662569604,10.1315421,3962.2,3962.1,0.001]
[1754662569926,5.9882421,3962.2,3962.1,1e-08]
[1754662570427,0.79859172,3962.2,3962.1,1e-08]
[1754662570590,7.26525038,3962.2,3962.1,1e-08]
[1754662570901,0.4667,3963.7,3962.1,1e-08]
[1754662571068,0.4667,3963.7,3962.1,0.45540001]
[1754662571069,0.4667,3963.6,3962.1,0.45540001]
[1754662571267,4.63,3963.6,3962.1,0.45540001]
[1754662571500,4.65520113,3963.6,3962.2,2.52385038]
[1754662571710,2.52308623,3963.4,3962.1,1e-08]
[1754662572018,0.02520113,3963.3,3962.1,1e-08]
[1754662572164,2.52364418,3962.6,3962.1,1e-08]
[1754662572367,4.627,3962.5,3962.1,1e-08]
[1754662572578,0.02520113,3962.4,3962.1,1e-08]
[1754662572784,2.52385038,3962.2,3962.1,1e-08]
[1754662573006,3.79145553,3962.2,3962.1,1e-08]
[1754662573222,5.90725553,3962.2,3962.1,1e-08]
[1754662573915,3.07448752,3961.2,3961.1,0.04]
[1754662574122,7.95611827,3961.2,3961.1,0.04]
[1754662574272,10.04671714,3961.2,3961.1,1e-08]
[1754662574494,6.43931341,3961.2,3961.1,1e-08]
[1754662574841,11.05831341,3961.2,3961.1,1e-08]
[1754662575430,1.24902589,3961.2,3961.1,1e-08]
[1754662575733,0.4667,3962.1,3961.1,0.45540001]
[1754662575734,2.52391408,3962.1,3961.1,0.45540001]
[1754662576025,4.612,3962.0,3961.1,0.45540001]
[1754662576393,2.52448752,3961.2,3961.1,1e-08]
[1754662576626,2.1158,3961.9,3961.1,1e-08]
[1754662576947,0.55,3961.7,3961.1,1e-08]
[1754662577189,3.07448752,3961.2,3961.1,1e-08]
[1754662577483,2.5249883,3960.5,3960.1,0.04]
[1754662577648,4.669,3960.4,3960.1,0.04]
[1754662577983,2.52512499,3960.2,3960.1,0.04]
[1754662578190,2.52512499,3960.2,3960.0,83.06830469]
[1754662578191,3.07518875,3960.1,3960.0,83.06830469]
[1754662578482,6.974441,3960.1,3960.0,71.61348123]
[1754662579371,6.73942198,3960.1,3960.0,71.61348123]
[1754662579569,1.54843323,3960.1,3960.0,71.61348123]
[1754662579735,4.668,3960.3,3960.0,71.61348123]
[1754662580132,2.1158,3962.3,3960.1,5.1071]
[1754662580343,4.68820113,3961.6,3960.0,71.61348123]
[1754662580533,4.676,3961.5,3960.1,0.02525188]
[1754662580778,0.1264,3960.6,3960.1,2.98058187]
[1754662580949,0.1264,3960.6,3960.1,0.4554]
[1754662581167,0.1264,3960.6,3960.2,2.52510286]
[1754662581344,4.704,3960.7,3960.3,0.4554]
[1754662581544,11.00559951,3963.3,3961.0,2.52456613]
[1754662581545,0.5067,3962.4,3961.0,2.52456613]
[1754662581855,0.5067,3962.4,3960.5,2.65132753]
[1754662581856,0.1264,3961.1,3960.5,2.65132753]
[1754662582063,0.1264,3960.8,3960.4,0.4554]
[1754662582245,2.52493563,3960.5,3960.0,71.61348123]
[1754662582565,0.1264,3960.1,3960.0,71.61348123]
[1754662582865,0.1264,3960.1,3960.0,61.07559062]
[1754662582866,5.19098875,3960.1,3960.0,61.07559062]
[1754662583066,6.43541512,3960.1,3960.0,26.01923955]
[1754662583234,6.66998313,3960.1,3960.0,26.01923955]
[1754662583433,6.66998313,3960.1,3960.0,25.002863]
[1754662583655,9.66998313,3960.1,3960.0,24.527863]
[1754662583970,3.07576278,3959.2,3958.1,0.04]
[1754662584169,8.36910797,3959.2,3958.1,0.04]
[1754662584368,7.23276278,3959.2,3958.2,0.4656]
[1754662584580,4.707,3959.2,3958.2,0.4656]
[1754662584880,7.23276278,3959.2,3958.2,0.4656]
[1754662585378,7.23276278,3959.2,3958.1,0.04]
[1754662585379,9.30566278,3959.2,3958.1,0.04]
[1754662585770,4.699,3959.2,3958.3,0.4666]
[1754662585942,4.699,3959.2,3959.1,0.5056]
[1754662586143,4.701,3959.3,3959.1,0.5056]
[1754662586480,2.52423374,3961.6,3959.1,0.5056]
[1754662586481,1.5229,3961.8,3960.2,2.5250663]
[1754662586779,2.52423263,3961.6,3960.3,0.4656]
[1754662586965,4.85249,3961.7,3960.3,0.4656]
[1754662587374,4.85249,3961.7,3959.8,2.52531667]
[1754662587680,4.85249,3961.7,3959.8,2.52535103]
[1754662587681,2.52457578,3961.1,3959.8,2.52535103]
[1754662587981,2.52467873,3960.9,3959.8,0.2990951]
[1754662588305,4.733,3961.0,3959.9,2.52531629]
[1754662588583,4.733,3961.0,3959.7,0.4656]
[1754662588789,2.52474247,3960.8,3959.1,0.041]
[1754662588946,2.52557539,3959.5,3959.1,0.041]
[1754662589142,7.25365274,3959.4,3959.1,0.041]
[1754662589441,4.729,3959.3,3959.1,0.041]
[1754662589655,2.52576278,3959.2,3959.1,0.041]
[1754662589856,4.59866278,3959.2,3959.1,0.041]
[1754662590692,9.31966278,3959.2,3959.1,0.041]
[1754662590875,10.88729473,3959.2,3959.1,1e-08]
[1754662591386,13.88729473,3959.2,3959.1,1e-08]
[1754662592131,10.88729473,3959.2,3959.1,1e-08]
[1754662592979,10.50419473,3959.2,3959.1,1e-08]
[1754662593336,8.54969473,3959.2,3959.1,1e-08]
[1754662593614,2.65216278,3959.2,3959.1,1e-08]
[1754662593814,8.88306278,3959.2,3959.1,1e-08]
[1754662594021,9.81616278,3959.2,3959.1,1e-08]
[1754662594193,2.52640088,3958.2,3958.1,0.04]
[1754662594391,8.41207247,3958.2,3958.1,0.04]
[1754662594616,9.93497247,3958.2,3958.1,0.04]
[1754662594917,7.35380088,3958.2,3958.1,0.04]
[1754662595415,7.35380088,3958.2,3955.7,3.0]
[1754662595416,7.35380088,3958.2,3956.5,0.4656]
[1754662595417,2.52700108,3957.3,3956.5,0.4656]
[1754662595582,7.22703932,3957.2,3956.5,0.4656]
[1754662595783,4.756,3957.2,3956.5,0.4656]
[1754662596012,7.83303932,3957.2,3956.5,0.4656]
[1754662596217,7.83303932,3957.2,3955.9,0.4656]
[1754662596428,2.52703932,3957.2,3956.4,0.4656]
[1754662597023,4.75,3957.2,3956.4,2.99313434]
[1754662597190,7.27703932,3957.2,3956.4,0.4656]
[1754662597391,4.749,3957.2,3956.4,0.4656]
[1754662597596,7.27603932,3957.2,3956.1,0.04]
[1754662597780,4.749,3957.2,3956.5,0.4656]
[1754662597980,7.27603932,3957.2,3956.5,0.4656]
[1754662598431,2.0729,3957.9,3956.1,0.04]
[1754662598432,1.5229,3957.9,3956.1,0.04]
[1754662598586,2.52703932,3957.2,3956.5,0.4656]
[1754662598921,6.065,3958.4,3957.2,0.4656]
[1754662599108,0.6065,3958.3,3957.2,0.4656]
[1754662599425,2.52748641,3956.5,3956.1,0.04]
[1754662599581,2.52767807,3956.2,3956.1,0.04]
[1754662600087,4.05057807,3956.2,3956.1,0.04]
[1754662600396,2.52767807,3956.2,3956.1,0.04]
[1754662600592,7.27667807,3956.2,3956.1,0.04]
[1754662601389,7.27167807,3956.2,3956.1,0.04]
[1754662601583,9.77450504,3956.2,3956.1,0.04]
[1754662602018,2.52812539,3955.5,3955.1,0.04]
[1754662602222,0.55,3956.1,3955.1,0.04]
[1754662602223,2.0729,3956.1,3955.1,0.04]
[1754662602517,4.60102539,3955.5,3955.1,0.04]
[1754662602718,10.00671113,3955.5,3955.1,0.04]
[1754662602941,10.00670844,3955.5,3955.1,0.04]
[1754662603087,0.55,3955.1,3953.1,2.5696381]
[1754662603284,0.55,3955.1,3953.1,0.04]
[1754662603285,0.55,3954.9,3953.1,0.04]
[1754662603587,3.07895655,3954.2,3953.1,0.04]
[1754662603791,9.79895655,3954.2,3953.1,0.04]
[1754662604122,9.36685655,3954.2,3953.1,0.04]
[1754662604286,19.10213413,3954.2,3954.1,1e-08]
[1754662604488,19.10213413,3954.2,3953.1,0.04]
[1754662604489,3.07959627,3953.2,3953.1,0.04]
[1754662604689,3.07959627,3953.2,3951.1,0.04]
[1754662604690,3.08023632,3952.2,3951.1,0.04]
[1754662604986,7.31823632,3952.2,3951.1,0.04]
[1754662605189,9.82323632,3952.2,3952.1,1e-08]
[1754662605387,19.01963632,3952.2,3952.1,1e-08]
[1754662605587,3.08087669,3951.2,3951.1,0.04]
[1754662605825,4.795,3951.2,3949.4,0.4656]
[1754662606139,4.795,3951.2,3946.8,11.00559951]
[1754662606140,0.55,3951.0,3949.6,0.4656]
[1754662606426,0.55,3951.0,3946.4,2.53394854]
[1754662606427,3.0,3952.0,3949.4,0.4656]
[1754662606720,4.806,3951.9,3950.6,2.53121913]
[1754662606930,2.53055646,3951.7,3950.7,0.25312191]
[1754662607096,0.55,3951.6,3950.2,0.4656]
[1754662607298,0.55,3951.6,3948.2,2.53276786]
[1754662607299,0.8809287,3953.3,3950.4,3.0]
[1754662607502,0.8809287,3953.3,3948.8,2.53235219]
[1754662607503,0.8809287,3953.3,3951.9,2.53041199]
[1754662607697,0.8809287,3953.3,3950.5,3.68814625]
[1754662607698,3.673,3953.2,3951.5,0.4656]
[1754662607900,2.53037835,3952.0,3950.8,0.4656]
[1754662608144,4.814,3951.9,3950.8,0.4656]
[1754662608348,4.0529675,3952.5,3950.1,0.5056]
[1754662608349,4.816,3951.8,3950.1,0.5056]
[1754662608487,4.815,3951.7,3950.8,0.4656]
[1754662608827,4.815,3951.7,3950.2,2.53147366]
[1754662608828,0.55,3951.5,3950.2,0.4156]
[1754662609034,2.53087979,3951.2,3950.2,0.4156]
[1754662609244,4.813,3951.4,3950.3,0.29871848]
[1754662609523,2.52864569,3954.7,3950.3,0.29871848]
[1754662609524,6.073,3953.0,3950.8,2.53112082]
[1754662609685,6.073,3953.0,3950.4,5.54679289]
[1754662609686,4.811,3952.7,3951.6,2.53060465]
[1754662610033,0.04,3953.4,3953.0,2.52972426]
[1754662610252,0.04,3953.4,3951.8,2.53049243]
[1754662610253,0.04,3953.4,3953.3,2.52953228]
[1754662610415,0.04,3953.4,3952.4,1.0961]
[1754662610595,0.04,3953.4,3950.8,11.00559951]
[1754662610596,4.81,3953.3,3951.5,1.0961]
[1754662610962,4.81,3953.3,3951.6,0.4656]
[1754662611091,5.295,3953.3,3951.7,0.15617]
[1754662611291,5.295,3953.3,3951.6,0.4656]
[1754662611292,0.55,3952.9,3951.6,0.4656]
[1754662611531,4.05250099,3953.2,3951.6,0.4656]
[1754662611732,4.81,3953.3,3951.7,0.4656]
[1754662611948,4.81,3953.3,3951.7,3.4656]
[1754662612091,0.04,3953.4,3951.6,1.0961]
[1754662612092,0.04,3953.4,3951.8,0.4656]
[1754662612290,0.04,3953.4,3953.3,2.52953228]
[1754662612492,0.04,3953.4,3953.3,2.99513228]
[1754662612691,0.04,3953.4,3953.3,4.09123228]
[1754662612989,0.04,3953.4,3951.9,0.2996188]
[1754662613193,0.04,3953.4,3947.3,2.53335098]
[1754662613194,0.04,3953.4,3952.3,0.4656]
[1754662614048,0.04,3953.4,3951.6,1.0961]
[1754662614049,2.53018298,3952.3,3951.6,0.4656]
[1754662614245,2.53023639,3952.2,3951.6,0.4656]
[1754662614409,2.53023639,3952.2,3949.9,13.53729363]
[1754662614410,2.52800119,3955.7,3952.2,30.0]
[1754662614795,2.6955083,3956.3,3954.3,2.52889259]
[1754662614796,0.8652083,3956.3,3954.3,2.52889259]
[1754662614958,0.8652083,3956.3,3953.5,2.5293711]
[1754662614959,4.942,3956.1,3953.6,3.0]
[1754662615103,4.942,3956.1,3954.2,0.4514]
[1754662615304,1.8303,3956.3,3954.2,0.4514]
[1754662615508,1.8303,3956.3,3955.2,2.528255]
[1754662615509,4.951,3955.9,3955.2,2.528255]
[1754662615709,4.951,3955.9,3954.6,0.4514]
[1754662616154,0.1264,3954.7,3954.6,2.52870075]
[1754662616657,2.52736222,3956.7,3955.3,2.52825322]
[1754662616805,4.948,3956.2,3955.3,2.52825322]
[1754662617007,4.948,3956.2,3954.4,2.52879181]
[1754662617008,0.55,3955.2,3952.3,0.885898]
[1754662617303,0.55,3954.9,3952.1,0.04]
[1754662617605,3.0,3955.0,3952.1,0.04]
[1754662617606,0.6764,3952.2,3952.1,0.04]
[1754662617807,5.6484,3952.2,3952.1,0.04]
[1754662618100,10.32333632,3952.2,3952.1,0.04]
[1754662618504,5.35133632,3952.2,3952.1,0.04]
[1754662618704,10.32033632,3952.2,3952.1,0.04]
[1754662618953,2.52953228,3953.3,3952.1,0.04]
[1754662619140,2.53023632,3952.2,3952.1,0.04]
[1754662619657,7.50723632,3952.2,3952.1,0.04]
[1754662619804,4.977,3952.2,3952.1,0.04]
[1754662620213,7.50723632,3952.2,3952.1,0.04]
[1754662620519,4.977,3952.4,3952.1,0.04]
[1754662620721,2.5301723,3952.3,3952.1,0.04]
[1754662620923,4.977,3952.4,3952.1,0.04]
[1754662621125,2.53023632,3952.2,3952.1,0.04]
[1754662622008,4.36053632,3952.2,3952.1,0.04]
[1754662622213,2.53023632,3952.2,3952.1,0.04]
[1754662622428,6.075,3952.7,3952.1,0.04]
[1754662622680,2.53004427,3952.5,3952.1,0.04]
[1754662622972,4.968,3952.6,3952.1,0.04]
[1754662623178,2.53023632,3952.2,3952.1,0.04]
[1754662624029,4.79658995,3952.2,3952.1,0.04]
[1754662624228,4.79658995,3952.2,3951.1,0.04]
[1754662624229,2.53087669,3951.2,3951.1,0.04]
[1754662624477,7.48787669,3951.2,3951.1,0.04]
[1754662624640,9.31817669,3951.2,3951.1,0.04]
[1754662624966,7.48587669,3951.2,3951.1,0.04]
[1754662625261,7.48287669,3951.2,3951.1,0.04]
[1754662625867,11.30534185,3951.2,3951.1,0.04]
[1754662626363,9.30617669,3951.2,3951.1,0.04]
[1754662626565,2.53077494,3951.4,3951.1,0.04]
[1754662626867,0.43605363,3952.2,3951.1,0.04]
[1754662627063,8.3567,3952.7,3951.1,0.4914]
[1754662627365,4.939,3952.6,3951.3,2.53078751]
[1754662627529,4.939,3952.6,3951.1,0.04]
[1754662627729,2.53059814,3951.7,3951.1,0.04]
[1754662627930,4.936,3951.6,3951.1,0.04]
[1754662628458,2.53087669,3951.2,3951.1,0.04]
[1754662628666,2.65727669,3951.2,3951.1,0.04]
[1754662629031,5.0063805,3951.2,3951.1,0.04]
[1754662629330,7.46087669,3951.2,3951.1,0.04]
[1754662629534,7.58727669,3951.2,3951.1,0.04]
[1754662630258,9.41757669,3951.2,3951.1,0.04]
[1754662630464,9.85837669,3951.2,3951.1,0.04]
[1754662630982,9.41757669,3951.2,3951.1,0.04]
[1754662631268,7.57327669,3951.2,3951.1,0.04]
[1754662631840,0.1264,3951.2,3951.1,0.04]
[1754662632040,0.1264,3951.2,3951.1,0.4914]
[1754662632345,4.911,3951.3,3951.1,0.04]
[1754662632537,7.56827669,3951.2,3951.1,0.04]
[1754662632869,10.38937669,3951.2,3951.1,0.04]
[1754662633052,2.53138922,3950.4,3950.3,0.001]
[1754662633254,7.44038922,3950.4,3950.3,0.001]
[1754662633460,9.39708922,3950.4,3950.3,0.001]
[1754662633832,0.1264,3950.4,3950.3,0.001]
[1754662634171,7.55978922,3950.4,3950.3,0.001]
[1754662634365,9.39008922,3950.4,3950.3,0.001]
[1754662634533,11.18992958,3950.4,3950.3,0.001]
[1754662634733,7.55778922,3950.4,3950.3,0.001]
[1754662635159,9.38808922,3950.4,3950.3,0.001]
[1754662635362,9.82888922,3950.4,3950.3,0.001]
[1754662635563,9.38808922,3950.4,3950.3,0.001]
[1754662635768,7.55778922,3950.4,3950.3,0.001]
[1754662635954,2.65778922,3950.4,3950.3,0.001]
[1754662636138,0.1264,3950.4,3950.3,0.001]
[1754662636337,5.0144,3950.4,3950.3,0.001]
[1754662636648,5.0134,3950.4,3950.3,0.001]
[1754662636847,7.54478922,3950.4,3950.3,0.001]
[1754662637050,0.1264,3950.4,3950.3,0.001]
[1754662637277,7.54478922,3950.4,3950.3,0.001]
[1754662637502,9.92508922,3950.4,3950.3,0.001]
[1754662637674,4.36168922,3950.4,3950.3,0.001]
[1754662638006,2.53151739,3950.2,3950.1,1e-08]
[1754662638298,3.97085297,3950.2,3950.1,1e-08]
[1754662638520,9.92321739,3950.2,3950.1,1e-08]
[1754662638667,10.36401739,3950.2,3950.1,1e-08]
[1754662638868,7.54091739,3950.2,3950.1,1e-08]
[1754662639169,9.92121739,3950.2,3950.1,1e-08]
[1754662639374,0.55,3950.1,3949.1,0.04]
[1754662639571,2.65855841,3949.2,3949.1,0.04]
[1754662639901,7.54655841,3949.2,3949.1,0.04]
[1754662640100,9.92685841,3949.2,3949.1,0.04]
[1754662640506,5.0144,3949.2,3949.1,0.04]
[1754662640706,5.0214,3949.2,3949.1,3.02362253]
[1754662640882,5.0214,3949.2,3949.1,3.57921537]
[1754662641101,5.0214,3949.2,3949.1,1.04699284]
[1754662641270,0.1264,3949.2,3949.1,0.04]
[1754662641600,7.54755841,3949.2,3949.1,0.04]
[1754662641776,9.92785841,3949.2,3949.1,0.04]
[1754662641986,10.36865841,3949.2,3949.1,0.04]
[1754662642181,9.81865841,3949.2,3949.1,0.04]
[1754662642419,11.60373053,3949.2,3949.1,0.04]
[1754662642582,2.53279975,3948.2,3948.1,0.04]
[1754662642788,5.0104,3948.2,3948.1,0.04]
[1754662642984,0.1264,3948.2,3948.1,0.04]
[1754662643199,0.1264,3948.2,3948.1,3.02420225]
[1754662643403,6.079,3949.0,3948.1,3.02420225]
[1754662643404,0.1264,3948.9,3948.2,2.53279975]
[1754662643599,4.883,3948.7,3948.1,0.59571486]
[1754662643904,0.1264,3948.2,3948.1,0.04]
[1754662644096,7.54419975,3948.2,3948.1,0.04]
[1754662644292,0.1264,3948.2,3948.1,0.04]